bitfinex/quotes_ETHUSD_20250611
["timestamp","ask_amount","ask_price","bid_price","bid_amount"]
[1749617918754,25.00613678,2794.1,2794.0,9.26615277]
[1749617919051,25.00613678,2794.1,2793.9,9.264]
[1749617919052,10.55,2794.0,2793.9,9.264]
[1749617919255,19.24494548,2794.0,2793.9,10.209]
[1749617919553,0.55,2793.9,2793.4,3.646]
[1749617919718,0.55,2793.7,2793.5,0.945]
[1749617919918,1.5446,2793.6,2793.5,0.945]
[1749617920154,1.7238,2793.6,2793.5,0.945]
[1749617920559,1.7238,2793.6,2792.2,0.41557129]
[1749617920560,0.55,2793.5,2792.3,30.0]
[1749617920931,0.1792,2792.6,2792.3,30.0]
[1749617921626,0.1792,2792.6,2792.4,3.647]
[1749617921827,0.1792,2792.6,2792.5,21.257135]
[1749617922139,0.1792,2792.6,2792.5,17.478604]
[1749617922551,0.1792,2792.6,2792.5,16.069471]
[1749617922751,0.1792,2792.6,2792.5,3.713643]
[1749617922959,10.55,2793.0,2792.6,10.0]
[1749617923171,10.55,2793.4,2792.9,8.734147]
[1749617923373,10.55,2793.4,2793.1,15.376649]
[1749617923571,10.55,2793.4,2793.2,13.647]
[1749617923874,10.55,2793.4,2793.2,3.647]
[1749617924076,0.7292,2793.3,2793.2,3.647]
[1749617924581,16.9235318,2793.3,2793.2,3.647]
[1749617925158,16.9235318,2793.3,2793.2,13.858]
[1749617928800,10.7292,2793.3,2793.2,21.775175]
[1749617929006,10.7292,2793.3,2793.2,19.166719]
[1749617929482,10.7292,2793.3,2793.2,17.977368]
[1749617930000,10.7292,2793.3,2793.2,17.379596]
[1749617930317,16.9235318,2793.3,2793.2,13.858]
[1749617933083,10.7292,2793.3,2793.2,13.858]
[1749617933591,16.9235318,2793.3,2793.2,13.858]
[1749617942329,18.61588498,2793.3,2793.2,13.858]
[1749617942526,19.64578498,2793.3,2793.2,9.265]
[1749617942731,19.64578498,2793.3,2793.2,13.857]
[1749617942944,0.55,2793.1,2792.1,0.1792]
[1749617943096,10.0,2793.2,2791.6,1.90788085]
[1749617943097,0.1792,2792.4,2792.2,30.945]
[1749617943298,0.1792,2792.4,2792.3,30.0]
[1749617943919,0.1792,2792.4,2792.3,30.945]
[1749617944247,0.1792,2792.4,2792.3,34.592]
[1749617945094,0.1792,2792.4,2792.3,43.857]
[1749617947930,0.1792,2792.4,2792.3,43.9074]
[1749617948809,0.1792,2792.4,2792.3,19.97511]
[1749617949029,0.1792,2792.4,2792.3,24.56811]
[1749617949557,0.1792,2792.4,2792.3,14.360941]
[1749617949756,0.1792,2792.4,2792.3,18.247465]
[1749617953233,0.1792,2792.4,2792.3,16.775762]
[1749617953578,0.1792,2792.4,2792.3,16.035762]
[1749617954379,6.3735318,2792.4,2792.3,16.035762]
[1749617954563,16.3735318,2792.4,2792.3,16.035762]
[1749617956083,10.1792,2792.4,2792.3,16.035762]
[1749617957061,10.55,2792.9,2792.3,16.086162]
[1749617957267,0.1792,2792.5,2792.4,19.810304]
[1749617957777,4.7,2793.2,2792.6,24.166076]
[1749617957975,0.1792,2792.9,2792.8,30.0504]
[1749617958207,0.1792,2792.9,2792.8,31.234596]
[1749617958354,6.1943318,2793.4,2792.8,31.234596]
[1749617958690,0.1792,2793.0,2792.9,29.305764]
[1749617958902,0.1792,2793.0,2792.9,32.952764]
[1749617960453,0.1792,2793.0,2792.9,21.02769]
[1749617960649,0.1792,2793.0,2792.9,7.2405]
[1749617961901,0.1792,2793.0,2792.9,8.1865]
[1749617964754,0.1792,2793.0,2792.9,7.4545]
[1749617964959,0.1792,2793.0,2792.6,19.429502]
[1749617964960,6.3735318,2793.0,2792.6,19.429502]
[1749617965268,1.0355,2793.2,2792.7,8.891]
[1749617965269,6.1943318,2792.8,2792.7,8.891]
[1749617965698,0.1792,2792.8,2792.7,8.891]
[1749617969909,0.1792,2792.8,2792.7,18.157]
[1749617975459,0.1792,2792.8,2792.7,21.0236]
[1749617976764,10.0,2793.4,2792.8,0.0504]
[1749617977058,10.0,2793.4,2793.0,14.079424]
[1749617977260,10.0,2793.4,2793.2,17.865844]
[1749617977452,10.55,2793.4,2793.3,11.548382]
[1749617977628,10.55,2793.4,2793.3,10.66116]
[1749617977829,10.7292,2793.4,2793.3,10.66116]
[1749617979466,10.1792,2793.4,2793.3,10.66116]
[1749617979669,0.1792,2793.4,2793.3,10.66116]
[1749617981981,0.1792,2793.4,2793.3,11.60616]
[1749617985795,0.1792,2793.4,2793.3,4.591]
[1749617986910,0.1792,2793.4,2793.3,13.856]
[1749617988986,6.3735318,2793.4,2793.3,10.21]
[1749617989184,8.62678498,2793.4,2793.3,13.855]
[1749617989389,0.7292,2793.4,2793.3,13.855]
[1749617989575,0.7292,2793.4,2793.3,33.907387]
[1749617989764,0.1792,2793.4,2793.3,33.907387]
[1749617989964,0.1792,2793.4,2793.3,20.178677]
[1749617992607,0.1792,2793.4,2793.3,25.467593]
[1749617993108,0.1792,2793.4,2793.3,24.771087]
[1749617994107,0.1792,2793.4,2793.3,23.826087]
[1749617994312,0.1792,2793.4,2793.3,24.770087]
[1749617995312,0.1792,2793.4,2793.3,20.966623]
[1749617996017,0.1792,2793.4,2793.3,0.944]
[1749617996388,0.1792,2793.4,2793.3,24.030797]
[1749617996623,0.1792,2793.4,2793.3,9.542291]
[1749617997299,0.1792,2793.4,2793.3,13.187291]
[1749617997498,0.1792,2793.4,2793.3,12.220642]
[1749618000934,0.2192,2793.9,2793.6,30.0]
[1749618001128,0.04,2793.9,2793.7,13.645]
[1749618001320,0.04,2793.9,2793.8,30.0]
[1749618001833,0.04,2793.9,2793.8,21.517137]
[1749618001996,6.4135318,2793.9,2793.8,4.589]
[1749618002192,0.55,2793.8,2793.3,16.94882]
[1749618002426,6.1943318,2793.7,2793.5,15.367896]
[1749618002638,6.3735318,2793.5,2792.5,30.0]
[1749618002937,6.1943318,2793.3,2792.8,30.0]
[1749618003224,6.3735318,2793.3,2793.0,30.0]
[1749618003463,6.3735318,2793.3,2793.2,17.5438]
[1749618003659,6.3735318,2793.3,2793.2,11.1878]
[1749618004264,6.3735318,2793.3,2793.2,2.0941]
[1749618004469,0.55,2793.1,2792.5,0.1792]
[1749618004760,0.1792,2793.0,2792.7,23.480815]
[1749618005073,6.7443318,2793.1,2792.9,15.755854]
[1749618005277,6.7443318,2793.1,2793.0,3.644]
[1749618005427,6.7443318,2793.1,2793.0,29.455849]
[1749618005628,6.9235318,2793.1,2793.0,39.455849]
[1749618006250,6.9235318,2793.1,2793.0,13.644]
[1749618006965,7.72285498,2793.1,2793.0,0.944]
[1749618007563,7.72285498,2793.1,2793.0,4.588]
[1749618008288,1.52852318,2793.1,2793.0,4.588]
[1749618013265,0.7292,2793.1,2793.0,4.588]
[1749618013882,0.7292,2793.1,2793.0,4.5962574]
[1749618018964,0.7292,2793.1,2793.0,0.9522574]
[1749618019280,0.7292,2793.1,2793.0,4.5962574]
[1749618022162,0.7292,2793.1,2793.0,0.0082574]
[1749618022400,1.52852318,2793.1,2793.0,4.5972574]
[1749618022603,8.82825498,2793.1,2793.0,0.9532574]
[1749618022766,2.63392318,2793.1,2793.0,0.9532574]
[1749618025918,8.82825498,2793.1,2793.0,0.9532574]
[1749618026115,13.52825498,2793.1,2793.0,0.9532574]
[1749618027807,12.42285498,2793.1,2793.0,0.944]
[1749618028120,0.55,2792.7,2792.5,3.644]
[1749618028287,6.7443318,2792.6,2792.5,3.644]
[1749618028508,6.9235318,2792.6,2792.5,3.644]
[1749618028702,6.9235318,2792.6,2792.0,0.36310841]
[1749618028703,1.5653,2792.5,2792.0,0.36310841]
[1749618028942,0.7292,2792.1,2792.0,0.36310841]
[1749618029105,0.7292,2792.1,2792.0,4.00710841]
[1749618029299,0.55,2791.9,2791.4,10.0]
[1749618029500,6.1943318,2791.6,2791.5,22.322005]
[1749618029713,6.1943318,2791.8,2791.6,10.0]
[1749618029920,6.7443318,2791.8,2791.7,18.715157]
[1749618030105,6.7443318,2791.8,2791.6,10.0]
[1749618030537,6.7443318,2791.8,2791.7,8.715157]
[1749618030717,1.0153,2792.0,2791.7,8.715157]
[1749618030718,6.1943318,2792.0,2791.7,8.715157]
[1749618030907,6.1943318,2792.2,2791.9,17.372053]
[1749618031234,0.55,2792.2,2792.0,3.645]
[1749618031433,6.7443318,2792.1,2791.2,30.0]
[1749618031740,0.1792,2791.6,2791.5,10.0]
[1749618031949,0.1792,2791.6,2791.5,5.729931]
[1749618032151,0.1792,2791.6,2791.5,15.729931]
[1749618032355,0.1792,2791.6,2791.1,0.40253624]
[1749618032659,0.1792,2791.6,2791.3,20.625087]
[1749618033437,0.1792,2791.6,2791.5,25.841281]
[1749618033747,0.1792,2791.6,2791.5,13.788452]
[1749618033955,0.1792,2791.6,2791.5,9.20801]
[1749618034109,0.1792,2791.6,2791.5,7.027683]
[1749618035123,0.1792,2791.6,2791.5,17.239683]
[1749618035338,0.1792,2791.6,2791.5,13.308551]
[1749618036158,0.1792,2791.6,2791.5,13.857]
[1749618036361,0.1792,2791.6,2791.5,16.174673]
[1749618036652,0.1792,2791.6,2791.5,9.268]
[1749618036818,0.1792,2791.6,2791.5,24.196537]
[1749618040445,4.7,2792.4,2791.5,24.196537]
[1749618040446,4.7,2792.4,2791.6,30.0]
[1749618040613,0.55,2792.4,2791.8,36.625084]
[1749618040815,6.1943318,2792.7,2792.0,38.174012]
[1749618041011,6.1943318,2792.9,2792.2,16.153818]
[1749618041212,7.2705318,2793.1,2792.4,31.422209]
[1749618041548,0.1792,2792.6,2792.5,21.682948]
[1749618041752,0.1792,2792.6,2792.5,21.39505704]
[1749618042115,6.1943318,2793.3,2792.5,21.39505704]
[1749618042343,0.1792,2792.8,2792.7,16.260388]
[1749618042655,0.1792,2792.8,2792.7,27.769424]
[1749618043338,6.1943318,2793.3,2792.8,23.320149]
[1749618043542,0.1792,2792.9,2792.6,30.0]
[1749618043745,0.1792,2792.9,2792.8,25.971199]
[1749618043941,0.1792,2792.9,2792.8,15.971199]
[1749618044665,0.1792,2792.9,2792.8,13.929542]
[1749618045279,0.1792,2792.9,2792.8,23.703954]
[1749618045582,0.55,2792.8,2791.7,40.0]
[1749618045748,6.1943318,2792.0,2791.8,10.944]
[1749618045931,0.1792,2791.9,2791.8,8.729957]
[1749618046134,0.1792,2791.9,2791.8,10.848776]
[1749618046376,0.1792,2791.9,2791.8,7.058776]
[1749618047464,0.1792,2791.9,2791.8,2.470776]
[1749618047770,0.7292,2791.9,2791.8,4.589]
[1749618050061,0.55,2791.8,2791.6,2.525238]
[1749618050267,6.7443318,2791.8,2791.7,14.588]
[1749618050449,6.9235318,2791.8,2791.7,4.588]
[1749618050939,7.61588498,2791.8,2791.7,0.944]
[1749618051138,7.61588498,2791.8,2791.7,4.589]
[1749618051651,8.61598498,2791.8,2791.7,4.589]
[1749618052648,7.9236318,2791.8,2791.7,0.944]
[1749618052847,7.9236318,2791.8,2791.7,4.589]
[1749618053560,8.71599498,2791.8,2791.7,4.589]
[1749618056180,7.9236318,2791.8,2791.7,4.589]
[1749618057550,1.7293,2791.8,2791.7,0.944]
[1749618057888,7.9236318,2791.8,2791.7,0.944]
[1749618058890,7.9236318,2791.8,2791.7,4.589]
[1749618059101,8.71599498,2791.8,2791.7,4.589]
[1749618060505,14.7,2792.5,2791.7,4.589]
[1749618060506,6.1943318,2792.0,2791.7,4.589]
[1749618060805,6.1943318,2791.8,2791.2,7.008118]
[1749618060965,6.1943318,2791.4,2791.3,6.694]
[1749618061298,0.55,2791.5,2791.3,4.589]
[1749618061516,5.7187,2792.0,2791.4,11.361371]
[1749618061672,6.1943318,2792.2,2791.4,11.361371]
[1749618061673,1.0495,2792.3,2791.4,11.79355539]
[1749618061874,0.1792,2791.9,2791.5,30.0]
[1749618062106,7.2438318,2792.5,2791.5,30.0]
[1749618062292,0.1792,2792.0,2791.7,40.0]
[1749618062495,0.1792,2792.0,2791.9,22.265428]
[1749618062681,0.1792,2792.2,2791.9,10.809167]
[1749618063004,0.1792,2792.2,2792.1,13.627554]
[1749618063169,0.1792,2792.3,2792.2,20.820796]
[1749618063372,0.1792,2792.4,2792.2,20.820796]
[1749618063568,1.0547,2793.1,2792.2,20.820796]
[1749618063787,0.1792,2792.6,2792.2,20.999996]
[1749618064003,0.1792,2792.6,2792.3,21.664381]
[1749618064310,0.1792,2792.6,2792.5,2.33285]
[1749618065166,0.1792,2792.6,2792.5,11.60285]
[1749618065369,0.1792,2792.6,2792.5,33.430917]
[1749618065568,0.1792,2792.6,2792.5,30.735845]
[1749618065769,0.1792,2792.6,2792.5,26.075751]
[1749618066503,0.1792,2792.6,2792.5,24.17899287]
[1749618067330,0.1792,2792.6,2792.5,22.92270587]
[1749618067498,0.1792,2792.6,2792.5,19.03541387]
[1749618068224,0.1792,2792.6,2792.5,17.75497787]
[1749618068731,0.7292,2792.6,2792.5,11.69365]
[1749618068882,0.7292,2792.6,2792.5,13.858]
[1749618069088,1.42155318,2792.6,2792.5,13.858]
[1749618071114,1.42155318,2792.6,2792.5,9.27]
[1749618071317,2.44445318,2792.6,2792.5,13.858]
[1749618071523,0.55,2792.5,2791.9,25.801729]
[1749618071706,6.1943318,2792.4,2792.1,23.864735]
[1749618072028,0.1792,2792.0,2791.2,40.0]
[1749618072230,0.1792,2792.0,2791.1,0.39763711]
[1749618072231,0.1792,2791.9,2791.6,22.324193]
[1749618072393,0.1792,2791.9,2791.8,29.158744]
[1749618072591,0.1792,2791.9,2791.8,19.158744]
[1749618072791,0.1792,2791.9,2791.8,22.802744]
[1749618074423,0.1792,2791.9,2791.8,9.40672]
[1749618074622,0.1792,2791.9,2791.8,5.76272]
[1749618074856,0.1792,2791.9,2791.8,4.588]
[1749618075203,0.1792,2791.9,2791.8,16.504322]
[1749618075599,0.1792,2791.9,2791.8,0.944]
[1749618075814,0.1792,2791.9,2791.8,12.714878]
[1749618076802,0.1792,2791.9,2791.8,16.358878]
[1749618078143,6.7443318,2792.5,2791.8,16.358878]
[1749618078356,0.1792,2792.0,2791.8,4.588]
[1749618078507,6.1943318,2791.9,2791.8,0.944]
[1749618078708,6.7443318,2791.9,2791.8,4.588]
[1749618079640,0.1792,2792.0,2791.9,10.247442]
[1749618080418,0.1792,2792.0,2791.9,9.056759]
[1749618080906,11.9033318,2792.7,2791.9,9.056759]
[1749618081106,0.1792,2792.3,2792.1,23.753856]
[1749618081335,0.1792,2792.3,2792.2,5.95085]
[1749618082648,0.1792,2792.3,2792.2,3.644]
[1749618083031,6.3735318,2792.3,2792.2,3.644]
[1749618083343,0.55,2792.2,2791.4,29.558045]
[1749618083504,0.1792,2791.7,2791.6,22.924209]
[1749618083707,0.1792,2791.7,2791.6,9.412842]
[1749618084518,6.7443318,2792.2,2791.6,9.412842]
[1749618084828,6.7443318,2792.2,2791.8,8.037413]
[1749618084829,0.1792,2791.9,2791.8,8.037413]
[1749618085032,0.1792,2791.9,2791.7,3.644]
[1749618085231,0.1792,2791.9,2791.8,12.912]
[1749618085541,0.55,2792.2,2791.8,12.912]
[1749618085742,0.1792,2791.9,2791.8,12.912]
[1749618086312,6.3735318,2791.9,2791.8,12.912]
[1749618086814,7.56088498,2791.9,2791.8,13.855]
[1749618089811,8.55048498,2791.9,2791.8,13.855]
[1749618090248,8.55048498,2791.9,2791.8,10.211]
[1749618090554,14.74481678,2791.9,2791.8,10.211]
[1749618092470,14.74481678,2791.9,2790.1,0.04]
[1749618092471,0.55,2791.6,2790.1,0.04]
[1749618092616,6.1943318,2790.6,2790.3,20.629292]
[1749618092952,0.1792,2790.5,2790.4,27.856761]
[1749618093615,0.1792,2790.5,2790.4,15.23958556]
[1749618094939,0.1792,2790.5,2790.4,18.88358556]
[1749618095216,0.1792,2790.5,2790.4,27.392249]
[1749618096242,0.1792,2790.5,2790.4,17.240702]
[1749618096440,0.1792,2790.5,2790.4,20.885702]
[1749618096635,0.1792,2790.5,2790.4,17.240702]
[1749618096855,0.1792,2790.5,2790.4,20.885702]
[1749618097154,0.1792,2790.5,2790.4,18.068843]
[1749618099857,2.191567,2790.5,2790.4,0.944]
[1749618100071,0.55,2790.4,2790.2,9.27]
[1749618100269,0.55,2790.4,2790.3,4.589]
[1749618100643,0.7292,2790.4,2790.3,4.589]
[1749618101056,0.7292,2790.4,2790.3,0.944]
[1749618101384,0.7292,2790.4,2790.3,4.589]
[1749618104607,10.20798719,2790.4,2790.3,4.589]
[1749618106108,0.7292,2790.4,2790.3,4.59]
[1749618107211,0.7292,2790.4,2790.2,9.27]
[1749618107363,0.7292,2790.4,2790.3,4.59]
[1749618109290,1.85622872,2790.4,2790.3,4.59]
[1749618109483,2.92342872,2790.4,2790.3,0.944]
[1749618110997,2.90132872,2790.4,2790.3,0.944]
[1749618112003,0.7292,2790.4,2790.3,0.944]
[1749618114510,0.7292,2790.4,2790.3,1.27596377]
[1749618114804,0.1792,2790.4,2790.3,26.24361511]
[1749618115009,0.1792,2790.4,2790.3,23.33884211]
[1749618115181,0.1792,2790.4,2790.3,23.33874803]
[1749618115395,0.1792,2790.4,2790.3,23.0069]
[1749618115919,0.1792,2790.4,2790.3,23.33870956]
[1749618116120,0.1792,2790.4,2790.3,23.0069]
[1749618116336,0.1792,2790.4,2790.3,23.33870447]
[1749618117016,0.1792,2790.4,2790.3,23.0069]
[1749618118320,9.47878719,2791.1,2790.3,23.0069]
[1749618118494,0.1792,2790.6,2790.5,0.0262]
[1749618118679,0.1792,2790.6,2790.5,12.810445]
[1749618119302,9.47878719,2791.3,2790.6,18.188234]
[1749618119504,0.1792,2790.9,2790.8,25.967317]
[1749618119701,0.1792,2790.9,2790.8,29.613317]
[1749618120485,0.1792,2790.9,2790.8,21.828033]
[1749618121510,0.1792,2790.9,2790.8,19.734033]
[1749618121713,0.1792,2790.9,2790.8,19.213033]
[1749618121913,0.1792,2790.9,2790.8,13.646]
[1749618122225,0.1792,2790.9,2790.8,14.59]
[1749618123022,0.1792,2790.9,2790.8,18.989]
[1749618124504,6.3843241,2790.9,2790.8,12.956669]
[1749618124731,6.3843241,2790.9,2790.8,14.59]
[1749618125400,6.3843241,2790.9,2790.8,16.892]
[1749618125807,0.1792,2790.9,2790.8,16.9182]
[1749618126007,0.55,2791.5,2790.9,10.0]
[1749618126008,6.2051241,2791.5,2790.9,10.0]
[1749618126341,6.2051241,2792.1,2791.5,0.0262]
[1749618126641,6.2051241,2791.9,2791.6,4.589]
[1749618127031,6.2051241,2791.9,2791.6,12.81265]
[1749618127230,0.1792,2791.7,2791.6,12.81265]
[1749618127542,0.1792,2791.7,2791.6,17.40165]
[1749618127543,6.3843241,2791.7,2791.6,17.40165]
[1749618128510,0.1792,2791.7,2791.6,17.76247768]
[1749618128707,1.0794,2792.6,2791.7,0.06]
[1749618128907,0.1792,2791.9,2791.8,34.22987]
[1749618129911,0.1792,2791.9,2791.8,33.208433]
[1749618130123,0.1792,2792.1,2792.0,24.898872]
[1749618130448,0.1792,2792.1,2792.0,35.236042]
[1749618130649,0.1792,2792.1,2792.0,30.831239]
[1749618130822,0.1792,2792.1,2792.0,26.060266]
[1749618131025,0.1792,2792.1,2792.0,22.917]
[1749618131626,0.1792,2792.1,2792.0,23.859]
[1749618131849,0.1792,2792.1,2792.0,13.859]
[1749618134247,0.1792,2792.1,2792.0,31.94883]
[1749618134430,0.1792,2792.1,2792.0,16.822358]
[1749618134750,11.2368855,2792.1,2792.0,9.272]
[1749618134977,12.36057405,2792.1,2792.0,13.859]
[1749618140058,12.36057405,2792.1,2792.0,10.215]
[1749618145649,0.7292,2792.1,2792.0,13.859]
[1749618148492,11.2407855,2792.1,2792.0,9.272]
[1749618148686,11.2407855,2792.1,2792.0,10.215]
[1749618148894,11.2407855,2792.1,2792.0,10.213]
[1749618149098,12.36486405,2792.1,2792.0,10.213]
[1749618149598,22.36486405,2792.1,2792.0,10.213]
[1749618149773,22.36486405,2792.1,2792.0,0.943]
[1749618152865,21.32256405,2792.1,2792.0,0.943]
[1749618153061,20.1984855,2792.1,2792.0,0.943]
[1749618153924,0.55,2792.0,2791.2,0.1792]
[1749618154119,0.1792,2791.6,2791.3,11.437776]
[1749618155132,0.1792,2791.6,2791.5,11.437776]
[1749618155491,0.1792,2791.6,2791.5,8.055501]
[1749618155991,0.1792,2791.6,2791.5,3.534501]
[1749618157427,0.1792,2791.6,2791.5,2.867361]
[1749618157938,0.55,2792.3,2791.6,11.437776]
[1749618158230,0.1792,2791.9,2791.8,11.437776]
[1749618158434,1.056,2792.6,2791.8,11.437776]
[1749618158603,0.1792,2792.1,2791.8,11.437776]
[1749618161106,0.1792,2792.1,2791.9,10.0]
[1749618161311,0.55,2792.0,2791.4,9.27]
[1749618161649,9.4692855,2791.8,2791.7,10.0]
[1749618161937,9.6484855,2791.8,2791.6,10.0]
[1749618162146,9.4692855,2791.8,2791.7,10.0]
[1749618162434,9.4692855,2791.8,2791.5,4.587]
[1749618162435,9.4692855,2791.8,2791.6,12.249]
[1749618162735,9.4692855,2791.8,2791.6,10.0]
[1749618163040,0.1792,2791.7,2791.5,4.587]
[1749618163242,0.1792,2791.7,2791.6,10.0]
[1749618163604,0.1792,2791.7,2791.5,4.587]
[1749618164245,0.1792,2791.7,2791.6,12.765]
[1749618164451,0.1792,2791.7,2791.6,10.0]
[1749618165125,0.1792,2791.7,2791.6,7.24713]
[1749618165451,0.1792,2791.7,2791.6,2.651788]
[1749618166629,0.1792,2791.7,2791.6,12.651788]
[1749618167939,0.55,2792.3,2791.7,11.437776]
[1749618168134,0.1792,2791.8,2791.7,7.935319]
[1749618168335,10.0,2793.0,2791.7,7.935319]
[1749618168336,1.0537,2792.7,2791.7,21.579319]
[1749618168528,0.1792,2792.1,2792.0,21.437776]
[1749618168880,14.1692855,2792.8,2792.1,11.437776]
[1749618169044,0.1792,2792.2,2792.1,21.437776]
[1749618169383,0.1792,2792.2,2792.1,25.081776]
[1749618171033,0.1792,2792.2,2792.1,25.99771521]
[1749618171233,0.1792,2792.2,2792.1,25.081776]
[1749618172471,0.1792,2792.2,2792.1,25.96982131]
[1749618172679,0.1792,2792.2,2792.1,20.508653]
[1749618173380,0.1792,2792.2,2792.1,20.291925]
[1749618173983,0.1792,2792.2,2792.1,21.1822054]
[1749618175970,0.7292,2792.2,2792.1,16.647925]
[1749618176169,0.1792,2792.2,2792.1,4.586]
[1749618176384,0.1792,2792.2,2792.1,16.023776]
[1749618177948,0.1792,2792.2,2792.1,13.773705]
[1749618178282,0.1792,2792.2,2792.1,13.112705]
[1749618179967,0.1792,2792.2,2792.1,0.943]
[1749618180348,0.1792,2792.2,2792.1,3.854071]
[1749618180750,10.5840855,2793.1,2792.3,10.0]
[1749618180972,10.5840855,2793.1,2792.1,11.3284071]
[1749618180973,0.1792,2792.6,2792.5,12.911071]
[1749618181196,0.1792,2792.6,2792.5,16.554071]
[1749618182684,0.1792,2792.6,2792.5,25.821071]
[1749618182983,0.55,2793.2,2792.6,2.911071]
[1749618183147,0.1792,2792.8,2792.7,6.554071]
[1749618183597,0.1792,2792.8,2792.7,16.554071]
[1749618183923,0.55,2793.2,2792.8,2.911071]
[1749618183924,0.1792,2793.2,2792.8,2.911071]
[1749618184051,9.5092855,2793.9,2792.8,13.2964781]
[1749618184052,9.4692855,2793.6,2792.8,13.2964781]
[1749618184253,0.2192,2792.9,2792.8,12.911071]
[1749618184762,0.2192,2792.9,2792.8,17.497071]
[1749618187907,0.2192,2792.9,2792.8,17.8565085]
[1749618192076,0.2192,2792.9,2792.8,13.2705085]
[1749618192301,0.2192,2792.9,2792.8,17.8555085]
[1749618193109,0.2192,2792.9,2792.8,4.9444375]
[1749618193478,0.2192,2792.9,2792.8,7.4415865]
[1749618193809,0.2192,2792.9,2792.8,4.9444375]
[1749618193969,0.2192,2792.9,2792.8,4.585]
[1749618194317,0.55,2792.8,2792.5,9.267]
[1749618194630,0.55,2792.8,2792.6,4.585]
[1749618194631,0.73823,2792.7,2792.6,4.585]
[1749618194911,1.8671,2792.7,2792.6,4.585]
[1749618195204,1.8671,2792.7,2792.6,0.943]
[1749618195509,1.8671,2792.7,2792.6,4.585]
[1749618195709,8.06689585,2792.7,2792.6,4.585]
[1749618196409,0.55,2792.6,2792.5,9.267]
[1749618196572,1.35668959,2792.6,2792.5,13.852]
[1749618198204,1.35668959,2792.6,2792.5,10.21]
[1749618198404,2.41618959,2792.6,2792.5,10.21]
[1749618198685,2.41618959,2792.6,2792.5,13.852]
[1749618199916,2.41618959,2792.6,2792.5,9.267]
[1749618200081,2.41618959,2792.6,2792.5,13.852]
[1749618204187,7.11618959,2792.6,2792.5,10.21]
[1749618204388,7.11618959,2792.6,2792.5,13.853]
[1749618205021,7.11618959,2792.6,2792.5,10.21]
[1749618205224,6.05668959,2792.6,2792.5,9.268]
[1749618205529,0.55,2792.5,2792.1,3.643]
[1749618205753,0.55,2792.1,2792.0,3.643]
[1749618205922,10.01808201,2792.1,2792.0,3.643]
[1749618206094,11.32078201,2792.1,2792.0,3.643]
[1749618206291,12.45286021,2792.1,2792.0,3.643]
[1749618206598,0.1792,2792.1,2792.0,3.643]
[1749618209426,0.1792,2792.1,2792.0,13.643]
[1749618211940,0.1792,2792.1,2792.0,10.0]
[1749618212139,0.1792,2792.1,2792.0,13.643]
[1749618213707,0.1792,2792.1,2792.0,10.0]
[1749618214030,1.1989282,2792.1,2792.0,10.0]
[1749618214237,0.55,2792.0,2791.5,0.0436]
[1749618214418,9.46808201,2791.9,2791.7,10.0]
[1749618214597,10.01808201,2791.9,2791.8,13.643]
[1749618214791,10.01808201,2791.9,2791.2,0.0436]
[1749618215031,0.1792,2791.5,2791.4,10.0]
[1749618215194,0.1792,2791.5,2791.4,10.943]
[1749618215729,0.1792,2791.5,2791.4,14.586]
[1749618222037,0.1792,2791.5,2791.4,10.0]
[1749618222346,0.1792,2791.5,2791.4,14.586]
[1749618226057,0.1792,2791.5,2791.4,29.210306]
[1749618226256,0.1792,2791.8,2791.7,0.037]
[1749618226557,0.1792,2791.8,2791.7,13.68]
[1749618227262,0.1792,2791.8,2791.7,22.95]
[1749618228161,0.1792,2791.8,2791.7,24.36305909]
[1749618228363,0.1792,2791.9,2791.8,10.0]
[1749618228655,0.1792,2791.9,2791.8,23.199035]
[1749618228836,0.1792,2791.9,2791.8,20.319035]
[1749618231820,0.1792,2791.9,2791.8,13.643]
[1749618232733,6.38158473,2791.9,2791.8,14.586]
[1749618232938,7.0197432,2791.9,2791.8,14.586]
[1749618233135,7.5697432,2791.9,2791.8,10.943]
[1749618233337,7.5697432,2791.9,2791.7,9.27]
[1749618233338,0.55,2791.8,2791.7,9.27]
[1749618233536,2.36697432,2791.8,2791.7,23.856]
[1749618233874,2.36697432,2791.8,2791.4,9.269]
[1749618233875,0.55,2791.6,2791.4,9.269]
[1749618234074,1.61,2791.6,2791.5,0.943]
[1749618234233,7.81238473,2791.6,2791.5,0.943]
[1749618234423,9.13932063,2791.6,2791.5,0.943]
[1749618234865,9.31852063,2791.6,2791.4,9.269]
[1749618235168,9.31852063,2791.6,2791.5,0.943]
[1749618235666,9.31852063,2791.6,2791.4,12.912]
[1749618235667,9.31852063,2791.6,2791.4,9.269]
[1749618235979,2.56195206,2791.5,2791.4,9.269]
[1749618236177,2.56195206,2791.5,2791.4,10.212]
[1749618237051,2.56195206,2791.5,2789.6,6.20238473]
[1749618237052,1.6301,2791.4,2790.2,0.037]
[1749618237253,6.75238473,2790.7,2790.4,10.0]
[1749618237433,6.75238473,2790.7,2790.6,10.0]
[1749618237631,6.93158473,2790.7,2790.0,0.1792]
[1749618237836,0.55,2790.2,2789.7,0.037]
[1749618238064,0.7292,2790.2,2790.1,0.983]
[1749618238476,1.53464847,2790.2,2790.1,0.983]